fUST/lending_fUST_20250618
["ID","MTS","AMOUNT","RATE_DAILY","PERIOD"]
[366317568,1750183868782,-1573.04,0.00023013,6]
[366317570,1750183868792,-1472.35,0.00023013,6]
[366317572,1750183868801,-173.0,0.00023014,7]
[366317574,1750183868810,-482.2,0.00023021,6]
[366317576,1750183868820,-500.0,0.00023073,2]
[366317577,1750183868830,-151.0,0.00023082,7]
[366317579,1750183868840,-229.476345,0.00023082,7]
[366317581,1750183868849,-229.476345,0.00023082,7]
[366317583,1750183868858,-151.0,0.00023082,7]
[366317585,1750183868868,-151.0,0.00023082,7]
[366317587,1750183868879,-156.85153499,0.00023096,2]
[366317589,1750183868889,-119533.86,0.000231,2]
[366317591,1750183868898,-500.0,0.00023111,2]
[366317593,1750183868908,-151.0,0.00023123,7]
[366317595,1750183868917,-460.0,0.00023123,6]
[366317597,1750183868927,-151.0,0.00023123,7]
[366317599,1750183868936,-460.0,0.00023123,6]
[366317601,1750183868946,-460.0,0.00023123,6]
[366317603,1750183868955,-460.0,0.00023123,6]
[366317605,1750183868965,-547.3,0.00023123,6]
[366317607,1750183868975,-516.39,0.00023123,6]
[366317609,1750183868984,-460.0,0.00023123,6]
[366317611,1750183868994,-518.73,0.00023123,6]
[366317613,1750183869003,-918.33,0.00023123,6]
[366317615,1750183869012,-460.0,0.00023123,6]
[366317616,1750183869022,-1120.85,0.00023123,2]
[366317618,1750183869031,-478.12,0.00023123,6]
[366317620,1750183869041,-531.1,0.00023123,6]
[366317622,1750183869054,-1220.25,0.00023123,6]
[366317624,1750183869064,-1048.25,0.00023123,6]
[366317626,1750183869073,-460.0,0.00023123,6]
[366317628,1750183869083,-460.0,0.00023123,6]
[366317630,1750183869093,-460.0,0.00023123,6]
[366317632,1750183869103,-244.67502958,0.00023123,6]
[366317642,1750183869192,-525.36,0.00023123,6]
[366317644,1750183869210,-460.0,0.00023123,6]
[366317646,1750183869220,-460.0,0.00023123,6]
[366317648,1750183869230,-151.0,0.00023123,7]
[366317650,1750183869239,-506.77,0.00023123,6]
[366317652,1750183869249,-460.0,0.00023123,6]
[366317654,1750183869258,-460.0,0.00023123,6]
[366317656,1750183869268,-571.29,0.00023123,6]
[366317658,1750183869278,-460.0,0.00023123,6]
[366317660,1750183869287,-869.73,0.00023123,6]
[366317662,1750183869297,-460.0,0.00023123,6]
[366317664,1750183869306,-460.0,0.00023123,6]
[366317666,1750183869316,-460.0,0.00023123,6]
[366317668,1750183869325,-460.0,0.00023123,6]
[366317670,1750183869335,-527.37376553,0.00023123,6]
[366317672,1750183869344,-460.0,0.00023123,6]
[366317674,1750183869353,-460.0,0.00023123,6]
[366317676,1750183869363,-460.0,0.00023123,6]
[366317677,1750183869372,-460.0,0.00023123,6]
[366317679,1750183869382,-460.0,0.00023123,6]
[366317681,1750183869391,-475.9,0.00023123,6]
[366317683,1750183869401,-460.0,0.00023123,6]
[366317685,1750183869411,-1798.27,0.00023123,6]
[366317687,1750183869421,-734.84,0.00023123,6]
[366317689,1750183869433,-5605.9,0.00023123,6]
[366317691,1750183869443,-570.66,0.00023123,6]
[366317693,1750183869453,-460.0,0.00023123,6]
[366317695,1750183869462,-460.0,0.00023123,6]
[366317697,1750183869471,-833.52,0.00023123,6]
[366317699,1750183869481,-1871.98,0.00023123,6]
[366317701,1750183869490,-1529.02,0.00023123,6]
[366317703,1750183869500,-920.73,0.00023123,6]
[366317705,1750183869509,-460.0,0.00023123,6]
[366317707,1750183869519,-2538.75,0.00023123,6]
[366317709,1750183869529,-460.0,0.00023123,6]
[366317711,1750183869538,-582.78,0.00023123,6]
[366317712,1750183869547,-460.0,0.00023123,6]
[366317713,1750183869558,-1732.82,0.00023123,6]
[366317714,1750183869567,-618.4,0.00023123,6]
[366317715,1750183869577,-596.57,0.00023123,6]
[366317716,1750183869587,-481.99,0.00023123,6]
[366317717,1750183869596,-1910.9,0.00023123,6]
[366317718,1750183869605,-1647.12,0.00023123,6]
[366317719,1750183869615,-4547.79,0.00023123,6]
[366317720,1750183869624,-1551.95,0.00023123,6]
[366317721,1750183869633,-460.0,0.00023123,6]
[366317722,1750183869643,-5865.31,0.00023123,6]
[366317723,1750183869654,-1652.96,0.00023123,6]
[366317724,1750183869664,-5369.29,0.00023123,6]
[366317725,1750183869675,-650.75,0.00023123,6]
[366317726,1750183869685,-1986.44,0.00023123,6]
[366317727,1750183869695,-491.1,0.00023123,6]
[366317728,1750183869704,-1822.09,0.00023123,6]
[366317729,1750183869714,-2564.14,0.00023123,6]
[366317730,1750183869723,-666.07,0.00023123,6]
[366317731,1750183869733,-9034.17,0.00023123,6]
[366317732,1750183869742,-835.98,0.00023123,6]
[366317733,1750183869751,-748.19,0.00023123,6]
[366317734,1750183869761,-522.02,0.00023123,6]
[366317735,1750183869771,-460.0,0.00023123,6]
[366317736,1750183869780,-1297.48,0.00023123,6]
[366317737,1750183869790,-2238.85,0.00023123,6]
[366317738,1750183869799,-2281.84,0.00023123,6]
[366317739,1750183869809,-460.0,0.00023123,6]
[366317740,1750183869818,-460.0,0.00023123,6]
[366317741,1750183869828,-6152.94,0.00023123,6]
[366317742,1750183869838,-530.82,0.00023123,6]
[366317743,1750183869847,-460.0,0.00023123,6]
[366317744,1750183869857,-461.84,0.00023123,6]
[366317745,1750183869867,-975.18,0.00023123,6]
[366317746,1750183869876,-460.0,0.00023123,6]
[366317747,1750183869886,-533.36,0.00023123,6]
[366317748,1750183869896,-1118.9,0.00023123,6]
[366317749,1750183869906,-2996.81,0.00023123,6]
[366317751,1750183869915,-151.0,0.00023123,7]
[366317752,1750183869925,-2719.07,0.00023123,6]
[366317753,1750183869935,-2147.82,0.00023123,6]
[366317755,1750183869945,-732.3,0.00023123,6]
[366317757,1750183869954,-546.66,0.00023123,6]
[366317759,1750183869963,-1701.19,0.00023123,6]
[366317761,1750183869973,-460.0,0.00023123,6]
[366317763,1750183869983,-460.0,0.00023123,6]
[366317765,1750183869993,-3292.96,0.00023123,6]
[366317767,1750183870002,-460.0,0.00023123,6]
[366317769,1750183870011,-1131.49,0.00023123,6]
[366317770,1750183870020,-1230.25,0.00023123,6]
[366317772,1750183870030,-1447.09,0.00023123,6]
[366317774,1750183870044,-997.03,0.00023123,6]
[366317776,1750183870054,-2693.89,0.00023123,6]
[366317778,1750183870064,-599.07,0.00023123,6]
[366317780,1750183870074,-3332.65,0.00023123,6]
[366317782,1750183870084,-532.08,0.00023123,6]
[366317785,1750183870096,-460.0,0.00023123,6]
[366317786,1750183870105,-1084.84,0.00023123,6]
[366317788,1750183870116,-8169.73,0.00023123,6]
[366317791,1750183870127,-460.0,0.00023123,6]
[366317792,1750183870136,-709.25,0.00023123,6]
[366317795,1750183870146,-1573.04,0.00023123,6]
[366317797,1750183870156,-1427.17308239,0.00023141,8]
[366317798,1750183870166,-1500.0,0.00023168,2]
[366317801,1750183870177,-1500.0,0.00023168,2]
[366317803,1750183870187,-482.2,0.00023184,6]
[366317804,1750183870196,-197.556896,0.000232,7]
[366317806,1750183870206,-197.556896,0.000232,7]
[366317808,1750183870216,-150.0,0.000232,2]
[366317810,1750183870226,-151.907426,0.00023232,7]
[366317813,1750183870236,-151.0,0.00023232,7]
[366317814,1750183870245,-151.0,0.00023232,7]
[366317816,1750183870255,-151.0,0.00023232,7]
[366317818,1750183870265,-323.28972554,0.00023232,6]
[366317820,1750183870274,-460.0,0.00023232,6]
[366317822,1750183870283,-460.0,0.00023232,6]
[366317824,1750183870292,-460.0,0.00023232,6]
[366317826,1750183870302,-547.3,0.00023232,6]
[366317828,1750183870311,-151.0,0.00023232,7]
[366317830,1750183870322,-516.39,0.00023232,6]
[366317832,1750183870331,-460.0,0.00023232,6]
[366317834,1750183870341,-518.73,0.00023232,6]
[366317836,1750183870350,-918.33,0.00023232,6]
[366317838,1750183870359,-460.0,0.00023232,6]
[366317840,1750183870369,-1120.85,0.00023232,2]
[366317842,1750183870378,-478.12,0.00023232,6]
[366317844,1750183870389,-531.1,0.00023232,6]
[366317846,1750183870398,-1220.25,0.00023232,6]
[366317848,1750183870407,-1048.25,0.00023232,6]
[366317850,1750183870416,-460.0,0.00023232,6]
[366317852,1750183870426,-151.0,0.00023232,7]
[366317854,1750183870435,-460.0,0.00023232,6]
[366317856,1750183870444,-460.0,0.00023232,6]
[366317858,1750183870453,-525.36,0.00023232,6]
[366317860,1750183870463,-460.0,0.00023232,6]
[366317862,1750183870472,-460.0,0.00023232,6]
[366317864,1750183870482,-506.77,0.00023232,6]
[366317866,1750183870491,-460.0,0.00023232,6]
[366317867,1750183870500,-427.22213635,0.00023232,6]
[366317869,1750183870509,-571.29,0.00023232,6]
[366317871,1750183870519,-460.0,0.00023232,6]
[366317873,1750183870530,-869.73,0.00023232,6]
[366317875,1750183870539,-460.0,0.00023232,6]
[366317877,1750183870550,-460.0,0.00023232,6]
[366317879,1750183870559,-460.0,0.00023232,6]
[366317881,1750183870572,-460.0,0.00023232,6]
[366317883,1750183870581,-460.0,0.00023232,6]
[366317885,1750183870591,-460.0,0.00023232,6]
[366317887,1750183870601,-460.0,0.00023232,6]
[366317889,1750183870610,-460.0,0.00023232,6]
[366317891,1750183870620,-460.0,0.00023232,6]
[366317893,1750183870630,-475.9,0.00023232,6]
[366317895,1750183870639,-460.0,0.00023232,6]
[366317897,1750183870648,-1798.27,0.00023232,6]
[366317908,1750183870746,-734.84,0.00023232,6]
[366317910,1750183870756,-5605.9,0.00023232,6]
[366317912,1750183870766,-570.66,0.00023232,6]
[366317914,1750183870775,-460.0,0.00023232,6]
[366317916,1750183870785,-460.0,0.00023232,6]
[366317918,1750183870794,-833.52,0.00023232,6]
[366317920,1750183870803,-1871.98,0.00023232,6]
[366317922,1750183870812,-1529.02,0.00023232,6]
[366317924,1750183870821,-920.73,0.00023232,6]
[366317926,1750183870831,-190.0,0.00023232,6]
[366317927,1750183870840,-2538.75,0.00023232,6]
[366317929,1750183870850,-460.0,0.00023232,6]
[366317931,1750183870859,-582.78,0.00023232,6]
[366317933,1750183870869,-460.0,0.00023232,6]
[366317935,1750183870879,-1732.82,0.00023232,6]
[366317937,1750183870888,-618.4,0.00023232,6]
[366317939,1750183870898,-596.57,0.00023232,6]
[366317941,1750183870907,-481.99,0.00023232,6]
[366317943,1750183870917,-1910.9,0.00023232,6]
[366317945,1750183870928,-1647.12,0.00023232,6]
[366317947,1750183870938,-4547.79,0.00023232,6]
[366317949,1750183870947,-1551.95,0.00023232,6]
[366317951,1750183870957,-460.0,0.00023232,6]
[366317953,1750183870968,-5865.31,0.00023232,6]
[366317955,1750183870978,-1652.96,0.00023232,6]
[366317957,1750183870989,-5369.29,0.00023232,6]
[366317959,1750183870999,-650.75,0.00023232,6]
[366317961,1750183871008,-1986.44,0.00023232,6]
[366317963,1750183871018,-491.1,0.00023232,6]
[366317965,1750183871027,-1822.09,0.00023232,6]
[366317967,1750183871040,-2564.14,0.00023232,6]
[366317969,1750183871050,-666.07,0.00023232,6]
[366317971,1750183871059,-9034.17,0.00023232,6]
[366317973,1750183871068,-835.98,0.00023232,6]
[366317975,1750183871078,-748.19,0.00023232,6]
[366317977,1750183871087,-522.02,0.00023232,6]
[366317979,1750183871099,-460.0,0.00023232,6]
[366317981,1750183871108,-1297.48,0.00023232,6]
[366317983,1750183871119,-2238.85,0.00023232,6]
[366317985,1750183871129,-2281.84,0.00023232,6]
[366317987,1750183871139,-460.0,0.00023232,6]
[366317989,1750183871148,-460.0,0.00023232,6]
[366317991,1750183871158,-6152.94,0.00023232,6]
[366317993,1750183871167,-530.82,0.00023232,6]
[366317994,1750183871177,-460.0,0.00023232,6]
[366317996,1750183871187,-461.84,0.00023232,6]
[366317998,1750183871196,-975.18,0.00023232,6]
[366318000,1750183871205,-460.0,0.00023232,6]
[366318002,1750183871215,-533.36,0.00023232,6]
[366318004,1750183871226,-1118.9,0.00023232,6]
[366318006,1750183871235,-2996.81,0.00023232,6]
[366318008,1750183871246,-2719.07,0.00023232,6]
[366318010,1750183871256,-2147.82,0.00023232,6]
[366318012,1750183871266,-732.3,0.00023232,6]
[366318014,1750183871276,-546.66,0.00023232,6]
[366318016,1750183871286,-1701.19,0.00023232,6]
[366318018,1750183871296,-460.0,0.00023232,6]
[366318020,1750183871306,-460.0,0.00023232,6]
[366318022,1750183871316,-3292.96,0.00023232,6]
[366318024,1750183871326,-460.0,0.00023232,6]
[366318026,1750183871337,-1131.49,0.00023232,6]
[366318028,1750183871347,-1230.25,0.00023232,6]
[366318030,1750183871356,-1447.09,0.00023232,6]
[366318032,1750183871365,-997.03,0.00023232,6]
[366318034,1750183871375,-2693.89,0.00023232,6]
[366318036,1750183871385,-599.07,0.00023232,6]
[366318038,1750183871395,-3332.65,0.00023232,6]
[366318040,1750183871405,-532.08,0.00023232,6]
[366318042,1750183871415,-460.0,0.00023232,6]
[366318044,1750183871427,-1084.84,0.00023232,6]
[366318046,1750183871437,-8169.73,0.00023232,6]
[366318048,1750183871447,-460.0,0.00023232,6]
[366318050,1750183871457,-709.25,0.00023232,6]
[366318052,1750183871467,-628.53836951,0.00023248,2]
[366318054,1750183871477,-326.80559789,0.00023268,2]
[366318056,1750183871486,-486.4350264,0.00023268,2]
[366318058,1750183871497,-1007.36256724,0.00023268,2]
[366318060,1750183871506,-1500.0,0.00023268,2]
[366318062,1750183871516,-1517.99747051,0.00023268,2]
[366318064,1750183871525,-1500.0,0.00023268,2]
[366318066,1750183871535,-502.77251593,0.00023268,2]
[366318068,1750183871545,-1502.17264723,0.00023268,2]
[366318070,1750183871554,-1500.0,0.00023268,2]
[366318071,1750183871563,-1585.07903443,0.00023268,2]
[366318073,1750183871573,-1500.0,0.00023268,2]
[366318075,1750183871584,-1500.0,0.00023268,2]
[366318078,1750183871595,-1800.0,0.00023268,2]
[366318080,1750183871605,-1137.74,0.00023277,3]
[366318082,1750183871616,-568.88,0.00023277,3]
[366318084,1750183871626,-500.0,0.0002328,2]
[366318086,1750183871636,-500.0,0.00023283,2]
[366318088,1750183871648,-500.0,0.00023284,2]
[366318090,1750183871658,-160.0,0.00023286,2]
[366318092,1750183871668,-500.0,0.00023288,2]
[366318094,1750183871681,-151.0,0.00023301,7]
[366318095,1750183871693,-256.403386,0.00023301,7]
[366318097,1750183871703,-228.18172,0.00023303,7]
[366318099,1750183871713,-151.0,0.00023303,7]
[366318100,1750183871722,-151.0,0.00023303,7]
[366318101,1750183871732,-1427.17308239,0.00023314,9]
[366318102,1750183871742,-504.61170123,0.00023318,2]
[366318103,1750183871752,-800.0,0.00023321,2]
[366318104,1750183871761,-1000.0,0.00023323,2]
[366318105,1750183871771,-500.0,0.00023339,2]
[366318106,1750183871780,-151.0,0.00023342,7]
[366318107,1750183871791,-460.0,0.00023342,6]
[366318108,1750183871800,-460.0,0.00023342,6]
[366318109,1750183871810,-460.0,0.00023342,6]
[366318110,1750183871819,-547.3,0.00023342,6]
[366318111,1750183871830,-516.39,0.00023342,6]
[366318112,1750183871839,-460.0,0.00023342,6]
[366318113,1750183871849,-518.73,0.00023342,6]
[366318114,1750183871859,-918.33,0.00023342,6]
[366318115,1750183871869,-460.0,0.00023342,6]
[366318116,1750183871879,-1120.85,0.00023342,2]
[366318117,1750183871888,-478.12,0.00023342,6]
[366318118,1750183871898,-531.1,0.00023342,6]
[366318119,1750183871908,-1220.25,0.00023342,6]
[366318120,1750183871917,-1048.25,0.00023342,6]
[366318121,1750183871928,-460.0,0.00023342,6]
[366318122,1750183871937,-460.0,0.00023342,6]
[366318123,1750183871947,-460.0,0.00023342,6]
[366318124,1750183871957,-525.36,0.00023342,6]
[366318125,1750183871967,-460.0,0.00023342,6]
[366318126,1750183871977,-460.0,0.00023342,6]
[366318127,1750183871986,-506.77,0.00023342,6]
[366318128,1750183871997,-460.0,0.00023342,6]
[366318129,1750183872006,-571.29,0.00023342,6]
[366318130,1750183872017,-460.0,0.00023342,6]
[366318131,1750183872027,-869.73,0.00023342,6]
[366318132,1750183872039,-460.0,0.00023342,6]
[366318133,1750183872050,-460.0,0.00023342,6]
[366318134,1750183872059,-460.0,0.00023342,6]
[366318135,1750183872069,-460.0,0.00023342,6]
[366318136,1750183872079,-460.0,0.00023342,6]
[366318137,1750183872089,-460.0,0.00023342,6]
[366318138,1750183872100,-460.0,0.00023342,6]
[366318139,1750183872194,-460.0,0.00023342,6]
[366318140,1750183872205,-460.0,0.00023342,6]
[366318141,1750183872215,-475.9,0.00023342,6]
[366318142,1750183872225,-588.19123597,0.00023342,6]
[366318143,1750183872235,-1798.27,0.00023342,6]
[366318144,1750183872244,-734.84,0.00023342,6]
[366318145,1750183872254,-5605.9,0.00023342,6]
[366318146,1750183872264,-570.66,0.00023342,6]
[366318147,1750183872273,-460.0,0.00023342,6]
[366318148,1750183872283,-460.0,0.00023342,6]
[366318149,1750183872292,-833.52,0.00023342,6]
[366318150,1750183872302,-1871.98,0.00023342,6]
[366318151,1750183872311,-1529.02,0.00023342,6]
[366318152,1750183872321,-920.73,0.00023342,6]
[366318153,1750183872330,-2538.75,0.00023342,6]
[366318154,1750183872340,-460.0,0.00023342,6]
[366318155,1750183872351,-582.78,0.00023342,6]
[366318156,1750183872360,-460.0,0.00023342,6]
[366318157,1750183872370,-1732.82,0.00023342,6]
[366318158,1750183872380,-618.4,0.00023342,6]
[366318159,1750183872389,-596.57,0.00023342,6]
[366318160,1750183872399,-481.99,0.00023342,6]
[366318161,1750183872408,-1910.9,0.00023342,6]
[366318162,1750183872418,-1647.12,0.00023342,6]
[366318163,1750183872429,-4547.79,0.00023342,6]
[366318164,1750183872440,-1551.95,0.00023342,6]
[366318165,1750183872451,-381.93291419,0.00023342,6]
[366318166,1750183872463,-5865.31,0.00023342,6]
[366318167,1750183872474,-1652.96,0.00023342,6]
[366318168,1750183872485,-5369.29,0.00023342,6]
[366318169,1750183872496,-650.75,0.00023342,6]
[366318170,1750183872507,-1986.44,0.00023342,6]
[366318171,1750183872520,-491.1,0.00023342,6]
[366318172,1750183872530,-1822.09,0.00023342,6]
[366318173,1750183872540,-2564.14,0.00023342,6]
[366318174,1750183872551,-666.07,0.00023342,6]
[366318175,1750183872561,-9034.17,0.00023342,6]
[366318176,1750183872571,-835.98,0.00023342,6]
[366318177,1750183872581,-748.19,0.00023342,6]
[366318178,1750183872591,-522.02,0.00023342,6]
[366318179,1750183872601,-493.38723592,0.00023342,6]
[366318180,1750183872611,-1297.48,0.00023342,6]
[366318181,1750183872621,-2238.85,0.00023342,6]
[366318182,1750183872631,-2281.84,0.00023342,6]
[366318183,1750183872641,-460.0,0.00023342,6]
[366318184,1750183872651,-460.0,0.00023342,6]
[366318185,1750183872661,-6152.94,0.00023342,6]
[366318186,1750183872671,-530.82,0.00023342,6]
[366318187,1750183872687,-460.0,0.00023342,6]
[366318188,1750183872697,-461.84,0.00023342,6]
[366318189,1750183872707,-975.18,0.00023342,6]
[366318190,1750183872718,-460.0,0.00023342,6]
[366318191,1750183872728,-533.36,0.00023342,6]
[366318192,1750183872738,-1118.9,0.00023342,6]
[366318193,1750183872748,-2996.81,0.00023342,6]
[366318194,1750183872758,-2719.07,0.00023342,6]
[366318195,1750183872768,-2147.82,0.00023342,6]
[366318196,1750183872778,-732.3,0.00023342,6]
[366318197,1750183872788,-546.66,0.00023342,6]
[366318198,1750183872798,-1701.19,0.00023342,6]
[366318199,1750183872808,-460.0,0.00023342,6]
[366318200,1750183872818,-460.0,0.00023342,6]
[366318201,1750183872828,-3292.96,0.00023342,6]
[366318202,1750183872838,-460.0,0.00023342,6]
[366318203,1750183872860,-1131.49,0.00023342,6]
[366318204,1750183872877,-1230.25,0.00023342,6]
[366318205,1750183872899,-1447.09,0.00023342,6]
[366318206,1750183872920,-997.03,0.00023342,6]
[366318207,1750183872944,-2693.89,0.00023342,6]
[366318208,1750183872963,-599.07,0.00023342,6]
[366318209,1750183872982,-3332.65,0.00023342,6]
[366318210,1750183872997,-532.08,0.00023342,6]
[366318213,1750183873017,-576.89084586,0.00023342,6]
[366318216,1750183873038,-1084.84,0.00023342,6]
[366318218,1750183873059,-8169.73,0.00023342,6]
[366318221,1750183873074,-555.61418103,0.00023342,6]
[366318224,1750183873094,-709.25,0.00023342,6]
[366318227,1750183873110,-482.2,0.00023348,6]
[366318228,1750183873125,-500.0,0.00023362,2]
[366318230,1750183873143,-500.0,0.00023366,2]
[366318233,1750183873159,-151.0,0.00023368,7]
[366318236,1750183873175,-1500.0,0.00023368,2]
[366318238,1750183873190,-1500.0,0.00023368,2]
[366318241,1750183873205,-1500.0,0.00023368,2]
[366318243,1750183873221,-1503.23448482,0.00023368,2]
[366318246,1750183873236,-1500.0,0.00023368,2]
[366318249,1750183873252,-1500.0,0.00023368,2]
[366318251,1750183873267,-1051.40217156,0.00023368,2]
[366318253,1750183873281,-566.87980216,0.00023368,2]
[366318255,1750183873295,-1500.0,0.00023368,2]
[366318257,1750183873309,-1500.0,0.00023368,2]
[366318260,1750183873325,-1500.0,0.00023368,2]
[366318262,1750183873339,-1522.26634147,0.00023368,2]
[366318264,1750183873354,-1500.0,0.00023368,2]
[366318266,1750183873369,-315.78308288,0.00023368,2]
[366318269,1750183873382,-1500.0,0.00023368,2]
[366318271,1750183873397,-1500.0,0.00023368,2]
[366318273,1750183873412,-1000.0,0.00023373,2]
[366318276,1750183873428,-202.18515436,0.00023373,2]
[366318278,1750183873443,-500.0,0.00023374,2]
[366318281,1750183873457,-500.0,0.00023397,2]
[366318283,1750183873472,-500.0,0.00023406,2]
[366318285,1750183873486,-151.0,0.00023411,7]
[366318288,1750183873500,-229.476345,0.00023411,7]
[366318290,1750183873515,-229.476345,0.00023411,7]
[366318293,1750183873529,-151.0,0.00023411,7]
[366318294,1750183873543,-197.556896,0.00023412,7]
[366318296,1750183873559,-197.556896,0.00023412,7]
[366318299,1750183873572,-151.0,0.00023412,7]
[366318301,1750183873588,-156.85153499,0.00023425,2]
[366318304,1750183873603,-151.0,0.00023452,7]
[366318306,1750183873617,-151.0,0.00023452,7]
[366318309,1750183873632,-151.0,0.00023452,7]
[366318311,1750183873647,-151.0,0.00023452,7]
[366318314,1750183873661,-151.0,0.00023452,7]
[366318317,1750183873678,-151.0,0.00023452,7]
[366318319,1750183873693,-460.0,0.00023452,6]
[366318322,1750183873708,-460.0,0.00023452,6]
[366318324,1750183873722,-460.0,0.00023452,6]
[366318327,1750183873737,-547.3,0.00023452,6]
[366318329,1750183873753,-516.39,0.00023452,6]
[366318332,1750183873768,-178.50704708,0.00023452,6]
[366318334,1750183873783,-518.73,0.00023452,6]
[366318337,1750183873797,-918.33,0.00023452,6]
[366318339,1750183873812,-502.37970391,0.00023452,6]
[366318342,1750183873827,-1120.85,0.00023452,2]
[366318344,1750183873841,-478.12,0.00023452,6]
[366318346,1750183873978,-531.1,0.00023452,6]
[366318347,1750183873988,-1220.25,0.00023452,6]
[366318348,1750183873997,-1048.25,0.00023452,6]
[366318349,1750183874007,-460.0,0.00023452,6]
[366318350,1750183874016,-151.0,0.00023452,7]
[366318351,1750183874026,-528.02734931,0.00023452,6]
[366318352,1750183874036,-460.0,0.00023452,6]
[366318353,1750183874048,-525.36,0.00023452,6]
[366318354,1750183874058,-460.0,0.00023452,6]
[366318355,1750183874067,-604.2,0.00023452,6]
[366318356,1750183874077,-506.77,0.00023452,6]
[366318357,1750183874087,-460.0,0.00023452,6]
[366318358,1750183874097,-571.29,0.00023452,6]
[366318359,1750183874107,-460.0,0.00023452,6]
[366318360,1750183874116,-869.73,0.00023452,6]
[366318361,1750183874126,-460.0,0.00023452,6]
[366318362,1750183874137,-460.0,0.00023452,6]
[366318363,1750183874147,-460.0,0.00023452,6]
[366318364,1750183874156,-323.33827109,0.00023452,6]
[366318365,1750183874166,-460.0,0.00023452,6]
[366318366,1750183874177,-460.0,0.00023452,6]
[366318367,1750183874186,-460.0,0.00023452,6]
[366318368,1750183874197,-460.0,0.00023452,6]
[366318369,1750183874206,-460.0,0.00023452,6]
[366318370,1750183874216,-475.9,0.00023452,6]
[366318371,1750183874226,-1798.27,0.00023452,6]
[366318372,1750183874236,-734.84,0.00023452,6]
[366318373,1750183874246,-5605.9,0.00023452,6]
[366318374,1750183874255,-570.66,0.00023452,6]
[366318375,1750183874265,-460.0,0.00023452,6]
[366318376,1750183874275,-159.31282057,0.00023452,6]
[366318378,1750183874285,-833.52,0.00023452,6]
[366318380,1750183874294,-1871.98,0.00023452,6]
[366318381,1750183874304,-1529.02,0.00023452,6]
[366318382,1750183874313,-920.73,0.00023452,6]
[366318383,1750183874323,-2538.75,0.00023452,6]
[366318384,1750183874333,-460.0,0.00023452,6]
[366318385,1750183874343,-582.78,0.00023452,6]
[366318386,1750183874352,-460.0,0.00023452,6]
[366318387,1750183874362,-1732.82,0.00023452,6]
[366318388,1750183874372,-618.4,0.00023452,6]
[366318389,1750183874382,-596.57,0.00023452,6]
[366318390,1750183874391,-481.99,0.00023452,6]
[366318391,1750183874401,-1910.9,0.00023452,6]
[366318392,1750183874411,-1647.12,0.00023452,6]
[366318393,1750183874420,-4547.79,0.00023452,6]
[366318394,1750183874430,-1551.95,0.00023452,6]
[366318395,1750183874441,-5865.31,0.00023452,6]
[366318397,1750183874451,-1652.96,0.00023452,6]
[366318399,1750183874460,-5369.29,0.00023452,6]
[366318401,1750183874470,-650.75,0.00023452,6]
[366318403,1750183874480,-1986.44,0.00023452,6]